Cogmind - Beta 15 @@@ ROGUE MODE // 2025.05.20 @ 23:49:37 Player: Tenderz Result: Core destroyed Performance ------------- Evolutions (3) 1500 Regions Visited (7) 1400 Robots Destroyed (73) 365 Value Destroyed (2218) 2218 Prototype IDs (3) 60 Alien Tech Used (0) 0 Bonus (166) 166 TOTAL SCORE: 5709 Bonus ------- High Alert Combat Kills 61 Follower Combat Kills 105 Cogmind --------- Core Integrity 0/700 Matter 258/300 Energy 150/150 System Corruption 26% Temperature Critical (531) Movement Flying (104) Ox1 Location -7/Lower Caves Parts ------- > --- POWER (1) -------- Micro Fission Core > --- PROPULSION (4) --- VTOL Module Cesium-ion Thruster Cesium-ion Thruster Improved Cesium-ion Thruster (fused) > --- UTILITY (6) ------ Medium Storage Unit Visual Processing Unit Improved Sensor Array Improved Signal Interpreter Salvage Targeting Computer Reaction Control System (fused) > --- WEAPON (2) ------- Ripper > --- INVENTORY (10) --- Light Nuclear Core VTOL Module Compact Matter Pod (63) Advanced Targeting Computer Tesla Rifle Improved EM Pulse Cannon Gauss Cannon Heavy Missile Launcher Peak State ------------ > --- POWER ------------ Micro Nuclear Core > --- PROPULSION ------- Armored Treads Armored Huge Wheel > --- UTILITY ---------- Coolant Injector High-capacity Storage Unit Improved Signal Interpreter Seismic Detector Makeshift Light Armor Plating Hacking Suite > --- WEAPON ----------- Flak Gun Gauss Cannon > --- INVENTORY -------- Light Nuclear Core Micro Fission Core VTOL Module VTOL Module Cesium-ion Thruster Improved Cesium-ion Thruster Improved Heat Sink Medium Storage Unit Improved Sensor Array Advanced Targeting Computer Hacking Suite Tesla Rifle Improved EM Pulse Cannon Gauss Cannon Gauss Cannon Heavy Rocket Launcher Heavy Missile Launcher [Rating: 45] Favorites ----------- Power Light Nuclear Core Engine Improved Ion Engine Power Core Light Nuclear Core Propulsion Light Treads Treads Light Treads Leg Carbon-fiber Leg Wheel Armored Wheel Flight Unit Cesium-ion Thruster Utility High-capacity Storage Unit Device Terrain Scanner Storage High-capacity Storage Unit Processor Advanced Terrain Scan Processor Hackware Hacking Suite Protection Core Shielding Weapon Beamcaster Energy Gun Beamcaster Energy Cannon Improved EM Pulse Cannon Ballistic Gun Assault Rifle Ballistic Cannon Gauss Cannon Launcher Rocket Launcher Impact Weapon Powered Hammer Slashing Weapon Scythe Build | -11 -10 -10 -10 -8 -7 -7 -7 ------- Run | Yrd Mat Min Sub Mat Fac Low Low Slots Evolved 6 | . . . . 4 2 . . Power . | . . . . . . . . Propulsion 2 | . . . . 1 1 . . Utility 4 | . . . . 3 1 . . Weapon . | . . . . . . . . Parts Attached 95 | 8 8 9 6 24 30 4 6 Power 9 | 1 1 1 1 1 3 1 . Engine 3 | 1 . . 1 1 . . . Core 6 | . 1 1 . . 3 1 . Reactor . | . . . . . . . . Propulsion 26 | 2 . 4 . 9 9 1 1 Treads 17 | 2 . 2 . 7 6 . . Leg 2 | . . 2 . . . . . Wheel 3 | . . . . 2 1 . . Hover . | . . . . . . . . Flight 4 | . . . . . 2 1 1 Utility 35 | 2 3 2 2 9 12 2 3 Device 14 | 1 3 . . 5 3 . 2 Storage 3 | 1 . 1 . . 1 . . Processor 8 | . . . . 2 3 2 1 Hackware 1 | . . . . . 1 . . Protection 9 | . . 1 2 2 4 . . Artifact . | . . . . . . . . Weapon 25 | 3 4 2 3 5 6 . 2 Energy Gun 6 | 1 2 2 . . 1 . . Energy Cannon 1 | . . . . . . . 1 Ballistic Gun 5 | 2 1 . 1 . 1 . . Ballistic Cannon 2 | . . . . 2 . . . Launcher 3 | . . . 1 1 1 . . Special Weapon . | . . . . . . . . Impact Weapon 2 | . . . 1 1 . . . Slashing Weapon 6 | . 1 . . 1 3 . 1 Piercing Weapon . | . . . . . . . . Special Melee Weapon . | . . . . . . . . Unidentified Prototypes 1 | . . . . . 1 . . Parts Lost 30 | . . . 1 . 29 . . Power 4 | . . . 1 . 3 . . Propulsion 11 | . . . . . 11 . . Utility 11 | . . . . . 11 . . Weapon 4 | . . . . . 4 . . Highest Loss Streak 9 | . . . 1 . 9 . . To Critical Strikes . | . . . . . . . . Average Backups 15 | 3 7 13 16 18 17 9 9 Power . | . . . . 1 1 . . Propulsion 1 | 1 1 2 2 1 2 . . Utility 7 | . 2 7 9 9 8 2 2 Weapon 4 | . 3 3 4 5 5 7 5 Tool/Special . | . . . . . . . . Unused Backups 34 | . 5 3 1 10 8 1 6 Power 6 | . 1 . . 1 3 . 1 Propulsion 5 | . 1 1 . . 2 . 1 Utility 14 | . 1 1 1 7 2 . 2 Weapon 9 | . 2 1 . 2 1 1 2 Tool/Special . | . . . . . . . . Average Slot Usage (%) 96 | . 100 100 99 99 95 45 79 Engine 4 | . 3 . 8 9 . . . Core 6 | . 10 14 5 . 6 2 7 Treads 20 | . 28 23 . 24 27 . . Leg 4 | . . 4 28 1 . . . Flight 1 | . . . . . . 17 26 Device 14 | . 14 13 6 24 12 . 8 Storage 10 | . 14 14 14 9 7 7 7 Processor 2 | . . . . 1 3 16 25 Hackware 1 | . . . . . 6 . . Protection 7 | . . . 7 10 12 . . Energy Gun 8 | . 9 27 14 5 1 . . Ballistic Gun 4 | . 17 . 7 . 1 . . Ballistic Cannon 1 | . . . . . 2 . . Impact Weapon 2 | . . . 5 2 2 . . Slashing Weapon 3 | . . . . 7 4 . 1 Peak Build Rating 45 | 7 12 19 22 33 45 28 39 Average Rating 23 | 5 9 12 19 26 36 21 35 On Entrance 16 | . 7 10 19 22 29 16 28 Naked Turns . | . . . . . . . . Heaviest Build 67 | 13 16 53 60 65 67 15 24 Greatest Support 80 | 40 40 40 30 60 80 16 20 Greatest Overweight (x) 5 | . . 1 1 5 4 . 1 Average Overweight (x) . | . . . 1 . . . . Largest Inventory Capacity 20 | 8 8 20 20 20 20 10 10 Average Capacity 16 | 7 8 16 20 20 19 10 10 Most Carried 20 | 4 8 20 20 20 20 10 10 Average Carried 15 | 3 7 15 19 19 18 9 9 Final Capacity 20 | 8 8 20 20 20 10 10 10 Final Carried 20 | 4 8 20 20 20 10 9 8 Class Distribution -------------------- 47% | Scavenger-Mutant 43% | Mutant Dominant Class ---------------- Mutant | -10/Materials Mutant | -10/Mines Scavenger-Mutant | -10/Subcaves Scavenger-Mutant | -8/Materials Scavenger-Mutant | -7/Factory Sprinter | -7/Lower Caves Derelict-Scout | -7/Lower Caves Resources | -11 -10 -10 -10 -8 -7 -7 -7 ----------- Run | Yrd Mat Min Sub Mat Fac Low Low Matter Collected 3270 | 320 392 201 203 628 1021 119 386 Remotely . | . . . . . . . . Salvage Created 2475 | 141 301 193 101 623 1067 . 49 Parts 165 | 6 18 7 10 57 67 . . Haulers Intercepted 2 | . 1 . . . 1 . . Recyclers Shooed 2 | . . 2 . . . . . Parts Field Recycled . | . . . . . . . . Retrieved Matter . | . . . . . . . . Parts Self-Destructed 13 | . . . 6 . . . 7 Prevented 2 | . . . . . . . 2 Kills | -11 -10 -10 -10 -8 -7 -7 -7 ------- Run | Yrd Mat Min Sub Mat Fac Low Low Combat Hostiles Destroyed 55 | . 8 4 3 20 20 . . Melee 22 | . . . . 15 7 . . Guns 19 | . 8 3 3 1 4 . . Cannons 5 | . . . . 1 4 . . AOE 9 | . . 1 . 3 5 . . Classes Destroyed 14 | 2 3 . 2 1 6 . . Worker 3 | . . . . . 3 . . Builder 5 | . . . . . 5 . . Tunneler 3 | 2 . . . . 1 . . Hauler 2 | . 1 . . . 1 . . Recycler 4 | 1 . . . . 3 . . Operator 1 | . . . . 1 . . . Swarmer 16 | . 3 . . 10 3 . . Grunt 20 | . 5 4 . 6 5 . . Brawler 2 | . . . . . 2 . . Duelist 2 | . . . . . 2 . . Sentry 6 | . . . 1 4 1 . . Hunter 2 | . . . . . 2 . . Programmer 5 | . . . . . 5 . . Subdweller 2 | . . . 2 . . . . Best Kill Streak 8 | 2 3 2 1 4 8 . . Combat Bots Only 4 | . 3 2 1 4 4 . . Max Kills in Single Turn 4 | 1 1 2 1 2 4 . . Gunslinging . | . . . . . . . . Exploded 2 | . . 1 . 2 2 . . Melee 1 | . . . . 1 1 . . Uniques/NPCs Destroyed . | . . . . . . . . Combat | -11 -10 -10 -10 -8 -7 -7 -7 -------- Run | Yrd Mat Min Sub Mat Fac Low Low Hostile Shots Fired 564 | . 35 21 17 82 409 . . Missed 168 | . 10 4 7 16 131 . . Hits 396 | . 25 17 10 66 278 . . Melee 9 | . . . . . 9 . . Projectile 387 | . 25 17 10 66 269 . . AOE 2 | . . . . . 2 . . Critical Strikes 17 | . . . 2 3 12 . . Actively Blocked 2 | . . . . 1 1 . . Part Disruptions 4 | . . . . . 2 . 2 Damage Taken 5897 | . 251 252 191 910 4164 . 129 Core 950 | . 58 40 32 116 613 . 91 Absorbed by Shields 48 | . . . . . 48 . . Redirected to Shielding 273 | . . . 7 108 158 . . Regen/Repaired (Parts) 21 | . . . . . 21 . . Core Remaining (%) 75 | 100 . . 48 78 . . . Volleys Fired 150 | 8 29 17 13 15 64 . 4 Largest 2 | 2 2 2 2 2 2 . 1 Hottest 115 | 40 85 105 108 115 105 . 69 Shots Fired 244 | 16 58 32 22 22 90 . 4 Gun 161 | 16 58 32 16 8 31 . . Cannon 70 | . . . . 12 54 . 4 Launcher 13 | . . . 6 2 5 . . Special . | . . . . . . . . Kinetic 164 | 16 50 . 5 13 78 . 2 Thermal 42 | . 6 17 11 7 1 . . Explosive 13 | . . . 6 2 5 . . Electromagnetic 25 | . 2 15 . . 6 . 2 Robot Hit Streak 13 | 4 5 13 12 4 8 . . Robot Miss Streak 7 | 2 3 1 3 2 7 . . Penetration Max . | . . . . . . . . Secondary Targets 1 | . . 1 . . . . . Max Gunslinging Chain 1 | . . 1 . . . . . Shots Hit Robots 198 | 10 33 27 14 29 84 . 1 Core Hits 107 | 4 13 11 5 20 53 . 1 Critical Kills . | . . . . . . . . Critical Parts Destroyed . | . . . . . . . . Critical Strikes 10 | . . 2 . 1 7 . . Burn 2 | . . 2 . . . . . Blast 3 | . . . . . 3 . . Sever 5 | . . . . 1 4 . . Melee Attacks 174 | . 10 2 36 56 68 . 2 Impact 53 | . . . 36 8 9 . . Slashing 121 | . 10 2 . 48 59 . 2 Piercing . | . . . . . . . . Sneak Attacks 8 | . . . . 2 6 . . Combat Hostiles . | . . . . . . . . Follow-up Attacks 5 | . . . . 2 3 . . Damage Inflicted 6238 | 129 481 424 391 1165 3558 . 90 Guns 1553 | 129 435 396 224 63 306 . . Cannons 930 | . . . . 148 782 . . Explosions 1201 | . . 22 167 170 842 . . Melee 2511 | . 46 . . 784 1591 . 90 Ramming 43 | . . 6 . . 37 . . Kinetic 1778 | 129 388 . 50 148 1063 . . Thermal 809 | . 47 252 174 63 273 . . Explosive 906 | . . . 167 170 569 . . Electromagnetic 191 | . . 166 . . 25 . . Impact 312 | . . . . 95 217 . . Slashing 2199 | . 46 . . 689 1374 . 90 Piercing . | . . . . . . . . Highest Corruption 26 | . . . . . 26 26 26 Average Corruption 13 | . . . . . 10 26 26 Corruption Purged . | . . . . . . . . Corruption Blocked . | . . . . . . . . Effects 89 | . . . . . 61 5 23 Message Errors 18 | . . . . . 8 3 7 Matter Fused 26 | . . . . . 19 1 6 Heat Flow Errors 14 | . . . . . 12 . 2 Energy Discharges 5 | . . . . . 5 . . Parts Fused 4 | . . . . . 2 . 2 Data Loss (minor) 9 | . . . . . 5 1 3 Data Loss (major) 5 | . . . . . 3 . 2 Misfires 2 | . . . . . 2 . . Alerts 1 | . . . . . . . 1 Misdirections 1 | . . . . . 1 . . Weapon Failures 4 | . . . . . 4 . . Overload Shots . | . . . . . . . . Overflow Damage 229 | . . . . 27 202 . . Projectiles 38 | . . . . . 38 . . Explosions 126 | . . . . . 126 . . Melee 65 | . . . . 27 38 . . Knockbacks 14 | . . . . 3 11 . . Impact 2 | . . . . 1 1 . . Kinetic 12 | . . . . 2 10 . . Secondary . | . . . . . . . . Self-Inflicted Damage 185 | . . 23 . . 162 . . Shots 5 | . . 1 . . 4 . . Rammed 9 | . . 2 . . 7 . . Targets Rammed 9 | . . 2 . . 7 . . Kicked . | . . . . . . . . Crushed . | . . . . . . . . Highest Temperature 531 | . 30 202 4 332 257 . 531 Average Temperature 99 | . 10 75 2 157 89 . 157 Received Heat Transfer 1152 | . 96 129 45 414 468 . . Effects 1 | . . . . . . . 1 Damage (core) 1 | . . . . . . . 1 Siege Activations . | . . . . . . . . Martial Activations . | . . . . . . . . Shielding Activations . | . . . . . . . . Robots Disrupted . | . . . . . . . . Combat Hostiles . | . . . . . . . . Robots Corrupted . | . . . . . . . . Combat Hostiles . | . . . . . . . . Parts Fried 1 | . . . . . 1 . . Impact Corruptions 3 | . . . . . 3 . . Robots Melted . | . . . . . . . . Combat Hostiles . | . . . . . . . . Parts Melted 2 | . . 1 1 . . . . Heat Transferred 1458 | . 111 790 296 111 150 . . Parts Sabotaged . | . . . . . . . . Parts Stolen . | . . . . . . . . Parts Stripped . | . . . . . . . . Power Chain Reactions 1 | . . 1 . . . . . Alert | -11 -10 -10 -10 -8 -7 -7 -7 ------- Run | Yrd Mat Min Sub Mat Fac Low Low Maximum Alert Level 3 | . . . . 1 3 . . Low Security (%) 80 | 100 100 100 . 91 46 . . Level 1 9 | . . . . 8 21 . . Level 2 9 | . . . . . 29 . . Level 3 . | . . . . . 2 . . Level 4 . | . . . . . . . . Level 5 . | . . . . . . . . High Security . | . . . . . . . . Max Security . | . . . . . . . . Peak Influence 705 | 10 122 53 . 288 705 . . Initial 127 | . . . . . 127 . . Average 106 | . 20 6 . 57 266 . . Influence Increases 2548 | 15 283 104 20 618 1488 . 20 Destroy 0b10 Robot/C 1140 | . 160 80 20 400 480 . . Destroy 0b10 Robot/NC 95 | 15 5 . . 5 65 . 5 Destroy Leader 264 | . 42 20 . 90 112 . . Allied During Kill 22 | . . . . . 22 . . Trap Triggered on 0b10 10 | . . . . 10 . . . Successful Hack 119 | . 27 . . 30 62 . . Disable Machine 120 | . . . . 15 105 . . Anti-Garrison Action 400 | . . . . . 400 . . Destroy Structure 153 | . 4 4 . 38 107 . . Lose Combat Pursuer 225 | . 45 . . 30 135 . 15 Influence Decreases 2435 | 15 283 104 20 338 1135 295 245 Entered New Map 453 | . . . . . 153 235 65 Time Decay 1632 | 15 283 104 20 338 632 60 180 Lost Part 290 | . . . . . 290 . . Lost Ally 60 | . . . . . 60 . . Squads Dispatched 19 | . 5 . . 2 12 . . Investigation 7 | . 2 . . 1 4 . . Extermination 4 | . . . . . 4 . . Reinforcement 7 | . 3 . . 1 3 . . Assault . | . . . . . . . . Garrison 1 | . . . . . 1 . . Intercept . | . . . . . . . . Searches Triggered . | . . . . . . . . Construction Impeded 1 | . . . . . 1 . . Haulers Reinforced . | . . . . . . . . Active Scanning Responses . | . . . . . . . . Cargo Convoy Interrupts 1 | . . . . . 1 . . Stealth | -11 -10 -10 -10 -8 -7 -7 -7 --------- Run | Yrd Mat Min Sub Mat Fac Low Low Distress Signals 2 | . 1 . . 1 . . . Communications Jammed . | . . . . . . . . Distress Signals . | . . . . . . . . Times Spotted 89 | . 18 4 3 25 37 . 2 Peak Tracking Total 6 | . 3 2 1 5 6 . 1 Tactical Retreats 13 | . 2 . . 2 8 . 1 Traps | -11 -10 -10 -10 -8 -7 -7 -7 ------- Run | Yrd Mat Min Sub Mat Fac Low Low Traps Triggered 8 | . 1 . . . 6 . 1 Indirectly . | . . . . . . . . Trap Hack Attempts . | . . . . . . . . Triggered . | . . . . . . . . Disarmed . | . . . . . . . . Reprogrammed . | . . . . . . . . Reused 1 | . . . . 1 . . . Traps Extracted . | . . . . . . . . Installed 3 | . . . . 3 . . . Triggered 1 | . . . . 1 . . . Most Traps Carried 3 | . . 3 3 3 . . . Machines | -11 -10 -10 -10 -8 -7 -7 -7 ---------- Run | Yrd Mat Min Sub Mat Fac Low Low Machines Disabled 8 | . . . . 1 7 . . Max in Single Turn 2 | . . . . 1 2 . . Garrison Access 3 | . . . . 1 2 . . Machines Repaired . | . . . . . . . . Machines Dismantled . | . . . . . . . . Machines Sabotaged . | . . . . . . . . Overloaded Fab Kills . | . . . . . . . . Hacking | -11 -10 -10 -10 -8 -7 -7 -7 --------- Run | Yrd Mat Min Sub Mat Fac Low Low Machines Accessed 27 | . 7 1 . 8 11 . . Terminals 16 | . 5 1 . 5 5 . . Fabricators 1 | . . . . . 1 . . Repair Stations 2 | . . . . 1 1 . . Recycling Units 3 | . 2 . . . 1 . . Scanalyzers 2 | . . . . 1 1 . . Garrison Access 3 | . . . . 1 2 . . Total Hacks 75 | . 21 5 . 20 29 . . Successful 44 | . 11 2 . 14 17 . . Failed 31 | . 10 3 . 6 12 . . Catastrophic 2 | . 2 . . . . . . Database Lockouts . | . . . . . . . . Manual 36 | . 14 5 . 6 11 . . Terminals 52 | . 16 5 . 15 16 . . Fabricators 1 | . . . . . 1 . . Repair Stations 4 | . . . . 2 2 . . Recycling Units 9 | . 5 . . . 4 . . Scanalyzers 4 | . . . . 2 2 . . Garrison Access 5 | . . . . 1 4 . . Terminal Hacks 18 | . 6 1 . 5 6 . . Record 1 | . 1 . . . . . . Part Schematic 1 | . 1 . . . . . . Robot Schematic 2 | . . . . . 2 . . Robot Analysis 3 | . 2 . . . 1 . . Prototype ID Bank 1 | . . . . 1 . . . Open DSF 1 | . . . . . 1 . . Branch Access Points 1 | . . . . . 1 . . Terminal Index 1 | . . . . 1 . . . Hauler Manifests 1 | . . . . 1 . . . Zone Layout 6 | . 2 1 . 2 1 . . Fabricator Hacks 1 | . . . . . 1 . . Build 1 | . . . . . 1 . . Repair Station Hacks 4 | . . . . 2 2 . . Scan Component 2 | . . . . 1 1 . . Repair 2 | . . . . 1 1 . . Recycling Unit Hacks 4 | . 3 . . . 1 . . Report Inventory 3 | . 2 . . . 1 . . Retrieve Components 1 | . 1 . . . . . . Scanalyzer 2 | . . . . 2 . . . Insert Component 1 | . . . . 1 . . . Analyze 1 | . . . . 1 . . . Garrison Access Hacks 1 | . . . . 1 . . . Seal Access 1 | . . . . 1 . . . Unauthorized Hacks 14 | . 2 1 . 4 7 . . Terminals 9 | . 2 1 . 4 2 . . Track 7 | . 2 1 . 3 1 . . Botnet 2 | . . . . 1 1 . . Fabricators . | . . . . . . . . Repair Stations . | . . . . . . . . Recycling Units 3 | . . . . . 3 . . Monitor 1 | . . . . . 1 . . Reject 1 | . . . . . 1 . . Mask 1 | . . . . . 1 . . Scanalyzers . | . . . . . . . . Garrison Access 2 | . . . . . 2 . . Jam 2 | . . . . . 2 . . Data Cores Recovered . | . . . . . . . . Used . | . . . . . . . . Hacking Detections 23 | . 6 1 . 6 10 . . Full Trace Events 2 | . 1 . . . 1 . . Feedback Events 1 | . . . . . 1 . . Corruption 1 | . . . . . 1 . . Feedback Blocked . | . . . . . . . . Robot Schematics Acquired 2 | . . . . . 2 . . Robots Built 3 | . . . . . 3 . . Authchips . | . . . . . . . . Time 44 | . . . . . 44 . . Total Robot Build Rating 12 | . . . . . 12 . . Part Schematics Acquired 2 | . 1 . . 1 . . . Parts Built . | . . . . . . . . Authchips . | . . . . . . . . Time . | . . . . . . . . Total Part Build Rating . | . . . . . . . . Parts Repaired 2 | . . . . 1 1 . . Time 82 | . . . . 44 38 . . Parts Recycled . | . . . . . . . . Recycled Matter . | . . . . . . . . Retrieved Matter . | . . . . . . . . Retrieved Components 4 | . 4 . . . . . . Parts Scanalyzed 1 | . . . . 1 . . . Part Schematics Acquired 1 | . . . . 1 . . . Parts Damaged . | . . . . . . . . Bothacking | -11 -10 -10 -10 -8 -7 -7 -7 ------------ Run | Yrd Mat Min Sub Mat Fac Low Low Used RIF Installer . | . . . . . . . . Robots Hacked . | . . . . . . . . Non-combat . | . . . . . . . . Combat . | . . . . . . . . Robot Hacks Applied . | . . . . . . . . Relay Couplers Released 6 | . . . . . 6 . . Programmers 6 | . . . . . 6 . . Fabnet Peak Effective % . | . . . . . . . . Robots Rewired . | . . . . . . . . Allies Hacked . | . . . . . . . . Hacks Repelled . | . . . . . . . . Allies | -11 -10 -10 -10 -8 -7 -7 -7 -------- Run | Yrd Mat Min Sub Mat Fac Low Low Total Allies 3 | . . . . . 3 . . Largest Group 3 | . . . . . 3 . . Highest-Rated Group 90 | . . . . . 90 . . Highest-Rated Ally 30 | . . . . . 30 . . Total Orders 1 | . . . . . 1 . . FOLLOW 1 | . . . . . 1 . . Ally Attacks 17 | . . . . . 17 . . Total Damage 423 | . . . . . 423 . . Kills 4 | . . . . . 4 . . Allies Corrupted . | . . . . . . . . Allies Melted 1 | . 1 . . . . . . Intel | -11 -10 -10 -10 -8 -7 -7 -7 ------- Run | Yrd Mat Min Sub Mat Fac Low Low Active Infowar (turns) 7322 | 78 1186 942 572 2332 1754 88 370 Optics 1127 | . . . . 669 . 88 370 Sensors 597 | . . . . . 411 . 186 Terrain 5714 | . 990 942 572 2250 960 . . Seismic 4103 | 78 196 . . 2202 1627 . . Robot Analysis Total 3 | . 2 . . . 1 . . Derelict Logs Recovered 7 | . . 2 . . . 3 2 Drone Launches . | . . . . . . . . Drone Recoveries . | . . . . . . . . Exploration | -11 -10 -10 -10 -8 -7 -7 -7 ------------- Run | Yrd Mat Min Sub Mat Fac Low Low Turns Passed 8854 | 161 1376 992 1238 2383 2206 129 369 Spaces Moved 4636 | 77 580 429 560 800 918 353 919 Core 3 | 3 . . . . . . . Treads 2498 | 74 580 345 . 684 815 . . Legs 651 | . . 84 560 7 . . . Wheels 199 | . . . . 109 90 . . Hover . | . . . . . . . . Flight 1285 | . . . . . 13 353 919 Fastest Speed 26 | 50 160 160 190 115 32 29 26 Average Speed 135 | 155 160 204 190 179 160 30 27 Slowest Speed 320 | 160 160 240 190 260 320 32 102 Overloaded Moves . | . . . . . . . . Propulsion Burnouts . | . . . . . . . . Robots Hopped 2 | . . . . . . . 2 Potential Cave-ins . | . . . . . . . . Cave-ins Triggered . | . . . . . . . . Exploration Rate (%) 56 | 4 80 91 31 64 29 59 90 Regions Visited 7 Branch Regions 4 Pre-discovered Areas 2 | . . . . . . 1 1 Known Exits Taken 2 | . . . . . 1 1 . Unknown Exits Taken 5 | 1 1 1 1 1 . . . Scrap Searched 7 | . . 1 . . . 3 3 Spaces Dug 97 | . 2 1 28 28 35 . 3 Terrain Destroyed 211 | . 2 4 45 40 117 . 3 Melee 51 | . 2 1 5 22 20 . 1 Projectile 32 | . . . . 10 20 . 2 AOE 128 | . . 3 40 8 77 . . Terrain Rammed . | . . . . . . . . Walls Destroyed . | . . . . . . . . Machines Disabled . | . . . . . . . . Actions | -11 -10 -10 -10 -8 -7 -7 -7 --------- Run | Yrd Mat Min Sub Mat Fac Low Low Total 6670 | 99 951 507 645 1647 1425 371 1025 Wait 1362 | 2 296 18 6 672 272 11 85 Move 4625 | 76 579 428 559 799 917 352 915 Hop 2 | . . . . . . . 2 Pick Up 91 | 4 12 16 7 26 21 1 4 Fast Attach 34 | 7 1 . 1 6 13 3 3 Attach 32 | 1 . . 1 5 21 2 2 Detach 3 | 1 . . . . 1 1 . Swap 116 | . 13 15 15 41 29 . 3 Drop 80 | . 11 9 7 32 16 1 4 Fire 150 | 8 29 17 13 15 64 . 4 Melee 162 | . 10 2 36 48 64 . 2 Ram 4 | . . . . . 4 . . Kick . | . . . . . . . . Crush 5 | . . 2 . . 3 . . Escape Stasis . | . . . . . . . . Rewire . | . . . . . . . . Trap 3 | . . . . 3 . . . Miscellaneous 1 | . . . . . . . 1 Route ------- -11/Scrapyard -10/Materials (discovered 4 exits: [*Mat x2] / *Min / [*Sub]) -10/Mines (discovered 2 exits: [*Mat] / [*Sub]) -10/Subcaves -8/Materials (discovered 2 exits: *Fac / [*Sto]) -7/Factory (discovered 4 exits: *Fac x2 / *Low x2) -7/Lower Caves -7/Lower Caves (discovered 2 exits: *Fac / *Zio) History --------- Turn | Location | Event 6 | -11/Scrapyard | Discovered new exit (range 15) 162 | -11/Scrapyard | Entered Materials 163 | -10/Materials | Met a group of wandering Federalists 344 | -10/Materials | Build established: Mutant 501 | -10/Materials | Discovered new exit (range 8) 841 | -10/Materials | Discovered new exit (range 16) 985 | -10/Materials | Discovered new exit (range 15) 1530 | -10/Materials | Discovered new exit (range 6) 1538 | -10/Materials | Entered Mines 1556 | -10/Mines | Received a Rocket Launcher from a helpful Derelict 1791 | -10/Mines | Learned Materials terminal intel 1859 | -10/Mines | Joined a pair of Derelicts in attacking an 0b10 outpost 2001 | -10/Mines | Found a hidden stash of uninstalled traps 2030 | -10/Mines | Discovered new exit (range 5) 2405 | -10/Mines | Discovered new exit (range 7) 2530 | -10/Mines | Entered Subcaves 2589 | -10/Subcaves | Discovered new exit (range 10) 2656 | -10/Subcaves | Build established: Scavenger-Mutant 3028 | -10/Subcaves | Core integrity fell below 50% 3178 | -10/Subcaves | Shifting Twisted Machinery released Sub. Machine Gun 3197 | -10/Subcaves | Shifting Twisted Machinery released Piercing Trap 3768 | -10/Subcaves | Entered Materials 3768 | -8/Materials | Evolved 4 slots: Propulsion x1, Utility x3 3769 | -8/Materials | Loaded intel: 12 terminal locations 4078 | -8/Materials | Repaired Broken Sub. Optics? 4318 | -8/Materials | Discovered new exit (range 17) 5617 | -8/Materials | Build established: Mutant 6105 | -8/Materials | Discovered new exit (range 5) 6151 | -8/Materials | Entered Factory 6151 | -7/Factory | Evolved 2 slots: Propulsion x1, Utility x1 6397 | -7/Factory | Build established: Scavenger-Mutant 7058 | -7/Factory | Discovered new exit (range 12) 7116 | -7/Factory | Repaired Imp. Terrain Scanner 7175 | -7/Factory | Build established: Mutant 7381 | -7/Factory | Lost 5 parts (2n2u1w) 7499 | -7/Factory | System corruption reached 10% 7531 | -7/Factory | Garrison activated, responded to threat 7690 | -7/Factory | Lost 3 parts (1n1u1w) 7705 | -7/Factory | Build established: Scavenger-Mutant 7783 | -7/Factory | Fabricated L-41 Fighter? 7924 | -7/Factory | Cargo convoy interrupted 7929 | -7/Factory | Discovered new exit (range 9) 8003 | -7/Factory | Identified exit to Lower Caves 8202 | -7/Factory | Lost 4 parts (3n1u) 8301 | -7/Factory | Core integrity fell below 50% 8335 | -7/Factory | Core integrity fell below 20% 8357 | -7/Factory | Entered Lower Caves 8384 | -7/Lower Caves | Lost 9 parts (1p2n4u2w) 8404 | -7/Lower Caves | Entered a destroyed Warlord outpost 8432 | -7/Lower Caves | Learned location of Zion (-7) 8445 | -7/Lower Caves | Identified exit to Lower Caves 8467 | -7/Lower Caves | Encountered a Warlord checkpoint 8486 | -7/Lower Caves | Entered another Lower Caves area 8499 | -7/Lower Caves | Learned Factory terminal intel 8528 | -7/Lower Caves | Activated DRS Beacon 8712 | -7/Lower Caves | Discovered new exit (range 10) 8761 | -7/Lower Caves | Identified exit to Factory 8841 | -7/Lower Caves | Discovered new exit (range 15) 8845 | -7/Lower Caves | Identified exit to Zion 8856 | -7/Lower Caves | Core destroyed Last Messages --------------- 08712_ EXIT=FOUND 08713_ System corrupted: Substantial component data lost. 08730_ System corrupted: Matter fused (-8). 08755_ Sneak attack on G-47 Trooper. 08755_ G-47 Trooper destroyed. 08756_ System corrupted: Matter fused (-8). 08758_ Acquired 49 matter. 08761_ EXIT=IDENTIFIED: FACTORY 08776_ J,X1FN E|Z/M5UG7 SDX W